bitfinex/quotes_BTCUSD_20250218
["timestamp","ask_amount","ask_price","bid_price","bid_amount"]
[1739890463846,0.156452,95876.0,95871.0,0.03111316]
[1739890464045,0.208604,95875.0,95870.0,0.10250365]
[1739890464294,0.15646,95872.0,95870.0,0.10250365]
[1739890464466,0.156458,95872.0,95870.0,0.10250365]
[1739890464671,0.156456,95874.0,95870.0,0.10250365]
[1739890464873,0.156473,95864.0,95842.0,0.1961]
[1739890465073,0.208618,95869.0,95856.0,0.156483]
[1739890465295,0.156489,95853.0,95828.0,0.0485]
[1739890465675,0.156489,95853.0,95852.0,0.10284365]
[1739890466078,0.21987261,95862.0,95852.0,0.10284365]
[1739890466258,0.208635,95861.0,95853.0,0.10250365]
[1739890466491,0.156481,95858.0,95854.0,0.01028437]
[1739890466699,0.156479,95860.0,95854.0,0.01028437]
[1739890466940,0.156486,95855.0,95854.0,0.01028437]
[1739890467146,0.20865,95855.0,95852.0,0.00034]
[1739890467348,0.00040015,95877.0,95853.0,0.10250365]
[1739890467551,0.00040015,95877.0,95852.0,0.00034]
[1739890467552,0.00040015,95877.0,95876.0,0.156452]
[1739890467762,0.00040015,95877.0,95876.0,0.27460085]
[1739890469454,0.00040015,95877.0,95876.0,0.10250365]
[1739890469662,0.00040015,95877.0,95856.0,0.156484]
[1739890469887,0.21987261,95870.0,95857.0,0.10250365]
[1739890470333,0.00129972,95869.0,95857.0,0.10250365]
[1739890470761,0.21987261,95870.0,95859.0,0.208639]
[1739890470977,0.21987261,95870.0,95835.0,0.15]
[1739890471195,0.21987261,95870.0,95853.0,0.10250365]
[1739890471403,0.15647,95865.0,95853.0,0.10250365]
[1739890471634,0.15647,95865.0,95855.0,0.156485]
[1739890471848,0.00040015,95877.0,95856.0,0.10250365]
[1739890472083,0.00040015,95877.0,95862.0,0.208631]
[1739890472084,0.147143,95876.0,95862.0,0.208631]
[1739890472286,0.00040015,95877.0,95863.0,0.10250365]
[1739890472498,0.00040015,95877.0,95870.0,0.156461]
[1739890472701,0.00040015,95877.0,95870.0,0.02589647]
[1739890473207,0.156452,95876.0,95863.0,0.10250365]
[1739890473428,0.156466,95867.0,95863.0,0.10250365]
[1739890473599,0.21987261,95873.0,95863.0,0.25897565]
[1739890473818,0.37632961,95873.0,95864.0,0.15647]
[1739890474032,0.156453,95875.0,95864.0,0.10250365]
[1739890474255,0.00040015,95877.0,95865.0,0.13361732]
[1739890474435,0.208574,95889.0,95876.0,0.156452]
[1739890474623,0.00013193,95889.0,95865.0,0.10250365]
[1739890474805,0.00013193,95889.0,95888.0,0.156432]
[1739890475035,0.00013193,95889.0,95888.0,0.25893565]
[1739890475384,0.156416,95898.0,95891.0,0.156427]
[1739890475621,0.156421,95895.0,95892.0,0.04675067]
[1739890475828,0.16945293,95898.0,95892.0,0.04675067]
[1739890476039,0.21987261,95900.0,95893.0,0.208565]
[1739890476242,0.156406,95905.0,95897.0,0.156416]
[1739890476451,0.15,95909.0,95888.0,0.10250365]
[1739890476694,0.156402,95907.0,95896.0,0.208557]
[1739890476902,0.0144225,95916.0,95889.0,0.10250365]
[1739890477102,0.319667,95915.0,95897.0,0.10250365]
[1739890477307,0.02746462,95916.0,95898.0,0.03110647]
[1739890477476,0.148449,95915.0,95899.0,0.10250365]
[1739890477678,0.15639,95914.0,95900.0,0.156411]
[1739890477878,0.208524,95912.0,95900.0,0.10250365]
[1739890478133,0.02746462,95916.0,95901.0,0.01025037]
[1739890478314,0.02746462,95916.0,95902.0,0.208546]
[1739890478531,0.02746462,95916.0,95908.0,0.156399]
[1739890478703,0.0144225,95916.0,95915.0,0.156388]
[1739890479358,0.0144225,95916.0,95914.0,0.156389]
[1739890479592,0.0144225,95916.0,95909.0,0.25890165]
[1739890479806,0.0144225,95916.0,95910.0,0.156396]
[1739890480015,0.0144225,95916.0,95911.0,0.10250365]
[1739890480931,0.208517,95915.0,95911.0,0.10250365]
[1739890481142,0.0144225,95916.0,95911.0,0.10250365]
[1739890481319,0.0144225,95916.0,95896.0,0.00729124]
[1739890481320,1.117507,95915.0,95896.0,0.00729124]
[1739890481524,0.21987261,95910.0,95896.0,0.00729124]
[1739890481742,2.220428,95909.0,95877.0,0.08363783]
[1739890481950,0.37628661,95900.0,95878.0,0.10250365]
[1739890482153,0.21987261,95900.0,95892.0,0.156425]
[1739890482370,0.21987261,95900.0,95893.0,0.10250365]
[1739890482371,0.156412,95900.0,95893.0,0.10250365]
[1739890482518,0.21987261,95902.0,95893.0,0.10250365]
[1739890482737,0.169467,95901.0,95879.0,0.02646734]
[1739890482949,0.21987261,95900.0,95880.0,0.10250365]
[1739890483200,0.156443,95881.0,95880.0,0.10250365]
[1739890483410,0.15644,95883.0,95880.0,0.10250365]
[1739890483624,0.156448,95878.0,95877.0,0.00013193]
[1739890484026,0.156446,95880.0,95877.0,0.00013193]
[1739890484236,0.023,95898.0,95877.0,0.00013193]
[1739890484447,0.317028,95897.0,95877.0,0.00013193]
[1739890484667,0.208574,95889.0,95877.0,0.00013193]
[1739890484873,0.15,95906.0,95878.0,0.10250365]
[1739890485085,0.031352,95900.0,95880.0,0.208594]
[1739890485283,0.031352,95900.0,95877.0,0.00013193]
[1739890485284,0.156413,95900.0,95881.0,0.10354644]
[1739890485488,0.21987261,95910.0,95887.0,0.156432]
[1739890485696,1.881,95909.0,95888.0,0.13494604]
[1739890485902,1.718159,95908.0,95888.0,0.10250365]
[1739890486111,0.15642,95896.0,95888.0,0.10250365]
[1739890486729,0.031348,95913.0,95888.0,0.10250365]
[1739890486935,0.21987261,95910.0,95889.0,0.04271614]
[1739890487144,0.156405,95905.0,95895.0,0.15642]
[1739890487349,0.156403,95906.0,95897.0,0.156417]
[1739890487554,0.156408,95903.0,95898.0,0.03246577]
[1739890487695,0.156408,95903.0,95899.0,0.03246577]
[1739890487896,0.156409,95902.0,95896.0,0.10250365]
[1739890488098,0.156409,95902.0,95897.0,0.0792251]
[1739890488327,0.156413,95900.0,95898.0,0.03247543]
[1739890488523,0.156413,95900.0,95899.0,0.03247543]
[1739890488732,0.606078,95900.0,95899.0,0.03247543]
[1739890488938,0.475844,95900.0,95869.0,0.208616]
[1739890489135,0.156418,95897.0,95887.0,0.156432]
[1739890489342,0.156418,95897.0,95888.0,0.13499023]
[1739890489595,0.156414,95900.0,95890.0,0.156429]
[1739890489809,0.15,95909.0,95891.0,0.13499023]
[1739890490015,2.395058,95908.0,95892.0,0.03248658]
[1739890490217,0.20856,95896.0,95891.0,0.10250365]
[1739890490459,0.156425,95892.0,95891.0,0.10250365]
[1739890490659,0.156425,95892.0,95891.0,0.13498989]
[1739890490850,0.21987261,95902.0,95891.0,0.13498989]
[1739890491089,0.58493872,95901.0,95892.0,0.03248624]
[1739890491287,0.156433,95888.0,95877.0,0.15658193]
[1739890491403,0.21987261,95902.0,95882.0,0.15644]
[1739890491612,0.156429,95890.0,95883.0,0.03248954]
[1739890491821,0.156422,95894.0,95884.0,0.03248954]
[1739890492043,0.156415,95899.0,95890.0,0.156427]
[1739890492266,0.156419,95896.0,95891.0,0.03248954]
[1739890492467,0.156418,95897.0,95892.0,0.03248954]
[1739890492682,0.15,95909.0,95893.0,0.03248954]
[1739890492896,1.964739,95908.0,95894.0,0.03248954]
[1739890493102,1.707335,95908.0,95890.0,0.10250365]
[1739890493301,0.156421,95895.0,95891.0,0.0324899]
[1739890493513,0.21987261,95900.0,95892.0,0.0324899]
[1739890493721,0.156421,95895.0,95890.0,0.10250365]
[1739890493934,0.156421,95895.0,95891.0,0.03249057]
[1739890494138,0.156421,95895.0,95892.0,0.03249054]
[1739890494341,0.15642,95896.0,95890.0,0.10250365]
[1739890494544,0.156424,95893.0,95891.0,0.03249039]
[1739890494770,0.156424,95893.0,95892.0,0.03249039]
[1739890494975,0.156421,95895.0,95892.0,0.03249039]
[1739890495176,0.156424,95894.0,95893.0,0.03249039]
[1739890495350,0.156424,95893.0,95890.0,0.10250365]
[1739890495775,0.156422,95895.0,95890.0,0.10250365]
[1739890496006,0.156423,95894.0,95890.0,0.10250365]
[1739890496405,0.208559,95896.0,95890.0,0.10250365]
[1739890496612,0.156421,95895.0,95890.0,0.10250365]
[1739890496810,0.156448,95878.0,95857.0,0.00034]
[1739890497154,0.156448,95878.0,95877.0,0.03262377]
[1739890497383,0.208581,95886.0,95877.0,0.00013193]
[1739890497589,0.156446,95880.0,95877.0,0.00013193]
[1739890497720,0.21987261,95887.0,95877.0,0.00013193]
[1739890497932,0.20540872,95886.0,95877.0,0.00013193]
[1739890498139,0.0001701,95919.0,95878.0,0.10250365]
[1739890498350,0.21987261,95900.0,95879.0,0.04275957]
[1739890498560,0.208554,95898.0,95881.0,0.156443]
[1739890498766,0.333077,95897.0,95882.0,0.10250365]
[1739890498973,0.21987261,95892.0,95882.0,0.10250365]
[1739890499181,0.156448,95878.0,95877.0,0.00013193]
[1739890499387,0.208595,95880.0,95877.0,0.00013193]
[1739890499608,0.156448,95878.0,95877.0,0.00013193]
[1739890499824,0.20857,95891.0,95877.0,0.00013193]
[1739890500028,0.156446,95880.0,95877.0,0.00047193]
[1739890500234,0.156448,95878.0,95877.0,0.00047193]
[1739890500445,0.22004261,95900.0,95877.0,0.00047193]
[1739890500674,0.22004261,95900.0,95878.0,0.14009982]
[1739890500914,0.156429,95891.0,95878.0,0.34765284]
[1739890501126,0.22004261,95900.0,95879.0,0.208596]
[1739890501328,0.22004261,95900.0,95878.0,0.13905684]
[1739890501329,0.208563,95895.0,95881.0,0.208591]
[1739890501559,0.00017,95900.0,95899.0,0.156414]
[1739890501774,0.00017,95900.0,95899.0,0.2964572]
[1739890501970,0.00017,95900.0,95899.0,0.29541455]
[1739890502174,0.00017,95900.0,95899.0,0.32791554]
[1739890502392,0.00017,95900.0,95899.0,0.29541455]
[1739890503860,0.00017,95900.0,95899.0,0.25891765]
[1739890504491,0.00017,95900.0,95899.0,0.10250365]
[1739890504922,0.00017,95900.0,95899.0,0.25891765]
[1739890508309,0.00017,95900.0,95899.0,0.40891765]
[1739890510421,0.00017,95900.0,95899.0,0.48511765]
[1739890510632,0.00017,95900.0,95899.0,0.57153064]
[1739890511697,0.00017,95900.0,95899.0,0.25250365]
[1739890511904,0.00017,95900.0,95899.0,0.10250365]
[1739890512555,0.00017,95900.0,95872.0,0.208609]
[1739890512763,0.00017,95900.0,95878.0,0.10250365]
[1739890512764,0.22004261,95900.0,95878.0,0.10250365]
[1739890512992,0.156427,95891.0,95879.0,0.208596]
[1739890513199,0.156428,95891.0,95882.0,0.156441]
[1739890513408,0.156428,95891.0,95883.0,0.10250365]
[1739890513618,0.208564,95894.0,95883.0,0.10250365]
[1739890513838,0.208564,95894.0,95883.0,0.25894365]
[1739890514045,0.00017,95900.0,95883.0,0.10250365]
[1739890514251,0.00017,95900.0,95884.0,0.208585]
[1739890514459,0.00017,95900.0,95888.0,0.156432]
[1739890514652,0.00017,95900.0,95885.0,0.10250365]
[1739890514653,0.208566,95893.0,95885.0,0.10250365]
[1739890515063,0.00017,95900.0,95887.0,0.156433]
[1739890515239,0.00017,95900.0,95885.0,0.10250365]
[1739890515458,0.00017,95900.0,95886.0,0.03265919]
[1739890515621,0.00017,95900.0,95897.0,0.156417]
[1739890515832,0.00017,95900.0,95898.0,0.10250365]
[1739890516248,0.00017,95900.0,95893.0,0.156424]
[1739890516404,0.00017,95900.0,95894.0,0.10250365]
[1739890517020,0.00017,95900.0,95897.0,0.156416]
[1739890517235,0.00017,95900.0,95895.0,0.15642]
[1739890517454,0.00017,95900.0,95894.0,0.10250365]
[1739890517680,0.00017,95900.0,95894.0,0.25892565]
[1739890517888,0.00017,95900.0,95894.0,0.14925292]
[1739890518104,0.156416,95898.0,95894.0,0.10250365]
[1739890518321,0.00017,95900.0,95894.0,0.10250365]
[1739890518761,0.00017,95900.0,95899.0,0.156414]
[1739890518969,0.00017,95900.0,95899.0,0.25891765]
[1739890519180,0.00017,95900.0,95899.0,0.04674726]
[1739890519379,0.00017,95900.0,95894.0,0.156421]
[1739890519591,0.208552,95899.0,95883.0,0.01549928]
[1739890519801,0.14588972,95898.0,95884.0,0.10250365]
[1739890520002,0.22004261,95900.0,95885.0,0.208583]
[1739890520003,0.00017,95900.0,95885.0,0.208583]
[1739890520201,0.00017,95900.0,95870.0,0.21987261]
[1739890520202,0.00017,95900.0,95886.0,0.10354646]
[1739890520415,0.00017,95900.0,95887.0,0.01035465]
[1739890520615,0.00017,95900.0,95897.0,0.156417]
[1739890520822,0.00017,95900.0,95899.0,0.156414]
[1739890521247,0.00017,95900.0,95898.0,0.10250365]
[1739890521867,0.00017,95900.0,95899.0,0.156414]
[1739890522075,0.00017,95900.0,95898.0,0.10250365]
[1739890522706,0.00017,95900.0,95880.0,0.208592]
[1739890522707,0.00017,95900.0,95882.0,0.208589]
[1739890522927,0.00017,95900.0,95880.0,0.208592]
[1739890522928,0.208552,95899.0,95884.0,0.15]
[1739890523136,0.00017,95900.0,95884.0,0.15]
[1739890523137,0.00017,95900.0,95885.0,0.10250365]
[1739890523346,0.208552,95899.0,95885.0,0.10250365]
[1739890523551,0.14665244,95900.0,95885.0,0.10250365]
[1739890523763,0.156432,95889.0,95885.0,0.10250365]
[1739890523971,0.208557,95897.0,95887.0,0.156434]
[1739890524180,0.156424,95894.0,95886.0,0.04610937]
[1739890524387,0.156424,95894.0,95886.0,0.14861302]
[1739890524596,0.156425,95893.0,95886.0,0.14861302]
[1739890524801,0.156422,95894.0,95887.0,0.0507202]
[1739890525008,0.208552,95899.0,95887.0,0.0507202]
[1739890525211,0.156424,95893.0,95887.0,0.0507202]
[1739890526078,0.156427,95892.0,95887.0,0.0507202]
[1739890526285,0.156425,95893.0,95888.0,0.04600028]
[1739890526696,0.156427,95892.0,95888.0,0.04600028]
[1739890526925,0.15643,95890.0,95888.0,0.04600028]
[1739890527127,0.00129972,95893.0,95885.0,0.00034]
[1739890527349,0.156435,95886.0,95885.0,0.00034]
[1739890527521,0.14665244,95900.0,95885.0,0.00034]
[1739890527751,0.156434,95887.0,95885.0,0.00034]
[1739890527945,0.208568,95892.0,95885.0,0.00034]
[1739890528142,0.00129972,95897.0,95885.0,0.00034]
[1739890528143,0.156435,95886.0,95885.0,0.00034]
[1739890528424,0.156434,95887.0,95885.0,0.00034]
[1739890528633,0.0832,95897.0,95885.0,0.00034]
[1739890528852,0.156434,95887.0,95885.0,0.00034]
[1739890529473,0.156432,95888.0,95885.0,0.00034]
[1739890529661,0.156434,95887.0,95885.0,0.00034]
[1739890530075,0.208559,95896.0,95885.0,0.0160186]
[1739890530282,0.156428,95891.0,95885.0,0.00034]
[1739890530912,0.156432,95889.0,95885.0,0.00034]
[1739890531147,0.156435,95886.0,95885.0,0.00034]
[1739890532252,0.15773472,95886.0,95885.0,0.00034]
[1739890533349,2.59706372,95886.0,95885.0,0.00034]
[1739890533561,2.618764,95886.0,95885.0,0.00034]
[1739890533816,1.565032,95886.0,95885.0,0.00034]
[1739890534018,0.528609,95886.0,95885.0,0.00034]
[1739890534237,0.446325,95886.0,95885.0,0.00034]
[1739890534450,0.156435,95886.0,95885.0,0.00034]
[1739890535580,0.06160242,95891.0,95885.0,0.00034]
[1739890535794,0.156432,95889.0,95885.0,0.00034]
[1739890535993,0.01600242,95891.0,95885.0,0.0368781]
[1739890536198,0.156427,95892.0,95885.0,0.00034]
[1739890536406,0.14665244,95900.0,95885.0,0.00034]
[1739890536606,0.16995,95899.0,95885.0,0.00034]
[1739890536811,0.18588561,95899.0,95885.0,0.00034]
[1739890537023,0.156434,95887.0,95885.0,0.00034]
[1739890537839,0.208574,95890.0,95885.0,0.00034]
[1739890537840,0.156432,95888.0,95885.0,0.00034]
[1739890538470,0.208574,95890.0,95885.0,0.00034]
[1739890538678,0.156426,95892.0,95885.0,0.00034]
[1739890538880,0.208557,95897.0,95885.0,0.00034]
[1739890539082,0.259977,95896.0,95885.0,0.00034]
[1739890539283,0.156432,95888.0,95885.0,0.00034]
[1739890539495,0.156435,95886.0,95885.0,0.00034]
[1739890539707,1.312946,95886.0,95885.0,0.00034]
[1739890539913,0.385201,95886.0,95885.0,0.00034]
[1739890540114,0.264847,95886.0,95885.0,0.00034]
[1739890540316,0.156435,95886.0,95885.0,0.00034]
[1739890540923,0.258523,95886.0,95885.0,0.00034]
[1739890542471,1.266501,95886.0,95885.0,0.00034]
[1739890542675,3.01072565,95886.0,95885.0,0.00034]
[1739890542879,0.329448,95878.0,95877.0,0.00047193]
[1739890543048,0.156481,95858.0,95857.0,0.00034]
[1739890543249,1.769619,95858.0,95857.0,0.00034]
[1739890543447,1.897525,95858.0,95857.0,0.00034]
[1739890543650,0.18510365,95877.0,95857.0,0.00034]
[1739890543854,0.377158,95876.0,95857.0,0.00034]
[1739890544085,0.00013179,95878.0,95858.0,0.10250365]
[1739890544255,0.19816579,95880.0,95863.0,0.208629]
[1739890544453,0.14648244,95880.0,95867.0,0.208622]
[1739890544665,0.156444,95881.0,95873.0,0.156456]
[1739890545040,0.208574,95889.0,95868.0,0.10250365]
[1739890545265,0.1264,95888.0,95868.0,0.10250365]
[1739890545499,0.1264,95888.0,95863.0,0.00148318]
[1739890545500,0.29296488,95880.0,95863.0,0.00044015]
[1739890545715,0.14648244,95873.0,95863.0,0.00044015]
[1739890545942,0.00129972,95872.0,95850.0,0.15]
[1739890546150,0.156489,95853.0,95826.0,0.0467]
[1739890546372,0.156489,95853.0,95843.0,0.156505]
[1739890546607,0.156489,95853.0,95841.0,0.208678]
[1739890546832,0.156489,95853.0,95845.0,0.156502]
[1739890547038,0.156489,95853.0,95842.0,0.156506]
[1739890547702,0.156489,95853.0,95844.0,0.156502]
[1739890547908,0.156489,95853.0,95846.0,0.1565]
[1739890548135,0.208635,95861.0,95845.0,0.208669]
[1739890548348,0.208641,95859.0,95849.0,0.156495]
[1739890548485,0.156468,95866.0,95831.0,0.15]
[1739890548702,0.594032,95865.0,95836.0,0.00104326]
[1739890548903,0.64819,95872.0,95853.0,0.10250365]
[1739890549130,0.00043952,95873.0,95854.0,0.0939222]
[1739890549339,0.00043952,95873.0,95867.0,0.156465]
[1739890549547,0.00043952,95873.0,95857.0,0.208644]
[1739890549749,0.00043952,95873.0,95869.0,0.156463]
[1739890549975,0.00043952,95873.0,95870.0,0.0156463]
[1739890550172,0.156459,95872.0,95866.0,0.208622]
[1739890550375,0.156459,95872.0,95858.0,0.10250365]
[1739890550376,0.00043952,95873.0,95867.0,0.156465]
[1739890550576,0.00043952,95873.0,95869.0,0.156462]
[1739890550788,0.00043952,95873.0,95867.0,0.208621]
[1739890550995,0.00043952,95873.0,95868.0,0.0208621]
[1739890551183,0.00043952,95873.0,95868.0,0.1773261]
[1739890551775,0.00043952,95873.0,95868.0,0.12336575]
[1739890552045,0.00043952,95873.0,95871.0,0.156459]
[1739890552254,0.00043952,95873.0,95872.0,0.156458]
[1739890552574,0.00043952,95873.0,95872.0,0.22616358]
[1739890553002,0.00043952,95873.0,95872.0,0.32866723]
[1739890554278,0.00043952,95873.0,95872.0,0.25896165]
[1739890555318,0.00043952,95873.0,95872.0,0.40896165]
[1739890555581,0.00043952,95873.0,95872.0,0.48856165]
[1739890556190,0.00043952,95873.0,95872.0,0.55116708]
[1739890556393,0.00043952,95873.0,95872.0,0.53476165]
[1739890556690,0.00043952,95873.0,95872.0,0.62658136]
[1739890557997,2.1e-07,95873.0,95872.0,0.64299653]
[1739890558857,2.1e-07,95873.0,95872.0,0.67548824]
[1739890559436,0.00017,95900.0,95879.0,0.02]
[1739890559646,0.00017,95900.0,95899.0,0.389514]
[1739890559871,0.00017,95900.0,95899.0,0.50230202]
[1739890560472,0.00017,95900.0,95899.0,0.41920202]
[1739890561727,0.00017,95900.0,95899.0,0.40891765]
[1739890562560,0.00017,95900.0,95899.0,0.25250365]
[1739890562769,0.00017,95900.0,95876.0,0.0806]
[1739890563001,0.00017,95900.0,95880.0,0.10250365]
[1739890563214,0.00017,95900.0,95881.0,0.01831037]
[1739890563431,0.00017,95900.0,95899.0,0.156414]
[1739890563840,0.00017,95900.0,95899.0,0.25891765]
[1739890564502,0.00017,95900.0,95874.0,0.02065881]
[1739890564705,0.00017,95900.0,95882.0,0.10250365]
[1739890564900,0.00017,95900.0,95883.0,0.208587]
[1739890565127,0.00017,95900.0,95884.0,0.25250365]
[1739890565338,0.156415,95899.0,95887.0,0.156433]
[1739890565520,0.00129972,95898.0,95888.0,0.10250365]
[1739890565728,0.00017,95900.0,95888.0,0.10250365]
[1739890565943,0.156417,95897.0,95888.0,0.10250365]
[1739890566151,0.156419,95897.0,95888.0,0.10250365]
[1739890566360,0.156423,95894.0,95888.0,0.13361272]
[1739890566566,0.22006658,95900.0,95888.0,0.10250365]
[1739890566777,0.156416,95898.0,95888.0,0.10250365]
[1739890566980,0.00017,95900.0,95888.0,0.10250365]
[1739890567189,0.156415,95899.0,95888.0,0.10250365]
[1739890567604,0.156419,95896.0,95888.0,0.10250365]
[1739890567811,0.22006658,95900.0,95888.0,0.10250365]
[1739890568015,0.511872,95899.0,95888.0,0.10250365]
[1739890568221,0.156415,95899.0,95888.0,0.10250365]
[1739890568637,0.00017,95900.0,95899.0,0.156414]
[1739890568844,0.00017,95900.0,95899.0,0.27455905]
[1739890569691,0.00017,95900.0,95899.0,0.11814505]
[1739890570132,0.00017,95900.0,95899.0,0.25891765]
[1739890570812,0.00017,95900.0,95899.0,0.10250365]
[1739890573488,0.00017,95900.0,95899.0,0.25891765]
[1739890573682,0.00017,95900.0,95899.0,0.10250365]
[1739890575097,0.00017,95900.0,95899.0,0.25891765]
[1739890575302,0.00017,95900.0,95899.0,0.28480942]
[1739890577370,0.00017,95900.0,95899.0,0.51650942]
[1739890582571,0.00017,95900.0,95899.0,0.43480942]
[1739890582770,0.00017,95900.0,95899.0,0.40891765]
[1739890582971,0.00017,95900.0,95899.0,0.25891765]
[1739890583830,0.00017,95900.0,95899.0,0.10250365]
[1739890584603,0.00017,95900.0,95899.0,0.25891765]
[1739890585452,0.00017,95900.0,95899.0,0.10250365]
[1739890586859,0.06210227,95914.0,95899.0,0.14925181]
[1739890587098,0.156391,95913.0,95900.0,0.10250365]
[1739890587327,0.156391,95913.0,95900.0,0.25891465]
[1739890587571,0.27075413,95914.0,95901.0,0.00104269]
[1739890587572,0.00013186,95914.0,95901.0,0.00104269]
[1739890587785,0.00013186,95914.0,95902.0,0.10250365]
[1739890587989,0.00013186,95914.0,95903.0,0.06696047]
[1739890588139,0.00013186,95914.0,95913.0,0.156391]
[1739890588350,0.00013186,95914.0,95913.0,0.25889465]
[1739890588879,0.00013186,95914.0,95913.0,0.10250365]
[1739890590471,0.00013186,95914.0,95913.0,0.25889465]
[1739890590645,0.00013186,95914.0,95913.0,0.10250365]
[1739890590850,0.00013186,95914.0,95913.0,0.26914502]
[1739890591045,0.00013186,95914.0,95913.0,0.10250365]
[1739890591607,0.00013186,95914.0,95913.0,0.25889465]
[1739890592034,0.00013186,95914.0,95913.0,0.10250365]
[1739890592665,0.00013186,95914.0,95913.0,0.25889465]
[1739890592874,0.00013186,95914.0,95913.0,0.10250365]
[1739890594322,0.00013186,95914.0,95913.0,0.25889465]
[1739890594788,0.00013186,95914.0,95913.0,0.10250365]
[1739890595784,0.00013186,95914.0,95913.0,0.25889465]
[1739890596505,1e-07,95919.0,95918.0,0.306383]
[1739890596711,3e-07,95929.0,95928.0,0.352367]
[1739890596910,0.0815,95970.0,95961.0,0.156313]
[1739890597101,0.0815,95970.0,95961.0,0.25881665]
[1739890597311,0.00020186,95962.0,95961.0,0.25881665]
[1739890597569,0.00020186,95962.0,95961.0,0.04081706]
[1739890597772,0.00020186,95962.0,95943.0,0.0754]
[1739890597773,0.00020186,95962.0,95943.0,0.208457]
[1739890597979,0.00020186,95962.0,95944.0,0.10250365]
[1739890598425,0.156316,95960.0,95945.0,0.208452]
[1739890598647,0.00020186,95962.0,95946.0,0.15444532]
[1739890598855,0.00020186,95962.0,95950.0,0.156331]
[1739890598999,0.00020186,95962.0,95951.0,0.10250365]
[1739890599407,0.00020186,95962.0,95952.0,0.156328]
[1739890599589,0.00020186,95962.0,95953.0,0.10250365]
[1739890599792,0.00020186,95962.0,95954.0,0.03109456]
[1739890599999,0.00020186,95962.0,95954.0,0.10250365]
[1739890600700,0.00020186,95962.0,95955.0,0.156323]
[1739890600902,0.00020186,95962.0,95954.0,0.10250365]
[1739890602049,0.00020186,95962.0,95955.0,0.10250365]
[1739890602300,0.00020186,95962.0,95956.0,0.156321]
[1739890602525,0.00020186,95962.0,95955.0,0.10250365]
[1739890603711,0.00020186,95962.0,95961.0,0.156313]
[1739890603908,0.00020186,95962.0,95961.0,0.10250365]
[1739890604107,0.00020186,95962.0,95961.0,0.25881665]
[1739890604284,0.00020186,95962.0,95961.0,0.30554032]
[1739890607559,0.00020186,95962.0,95939.0,0.02077014]
[1739890607932,0.00020186,95962.0,95940.0,0.10250365]
[1739890608133,0.00020186,95962.0,95951.0,0.15]
[1739890608335,0.14640264,95961.0,95952.0,0.10250365]
[1739890608551,0.00020186,95962.0,95955.0,0.156321]
[1739890608758,0.00020186,95962.0,95955.0,0.10250365]
[1739890608882,0.00020186,95962.0,95955.0,0.25882665]
[1739890609082,0.00020186,95962.0,95961.0,0.156313]
[1739890609267,0.00020186,95962.0,95961.0,0.25881665]
[1739890610302,0.00020186,95962.0,95961.0,0.10250365]
[1739890610530,0.00020186,95962.0,95961.0,0.25881665]
[1739890610759,0.00020186,95962.0,95961.0,0.24825665]
[1739890610962,0.00020186,95962.0,95961.0,0.33561002]
[1739890611228,0.00020186,95962.0,95961.0,0.17929702]
[1739890611422,0.00020186,95962.0,95934.0,0.15]
[1739890611620,0.00020186,95962.0,95941.0,0.15]
[1739890611844,0.00020186,95962.0,95940.0,0.10250365]
[1739890611845,0.00020186,95962.0,95943.0,0.15]
[1739890612063,0.00020186,95962.0,95945.0,0.15]
[1739890612341,0.00020186,95962.0,95947.0,0.15]
[1739890612545,0.00020186,95962.0,95948.0,0.10250365]
[1739890612782,0.00020186,95962.0,95961.0,0.156313]
[1739890612985,0.00020186,95962.0,95961.0,0.25881665]
[1739890613097,0.00020186,95962.0,95961.0,0.30554032]
[1739890615551,0.208523,95991.0,95961.0,0.14922732]
[1739890615776,0.00043936,95978.0,95970.0,0.156297]
[1739890616020,0.00043936,95978.0,95971.0,0.10250365]
[1739890616343,0.00043936,95978.0,95972.0,0.156295]
[1739890616561,0.00043936,95978.0,95975.0,0.15629]
[1739890616756,0.00043936,95978.0,95976.0,0.12838301]
[1739890616961,0.00043936,95978.0,95976.0,0.10250365]
[1739890617218,0.00043936,95978.0,95977.0,0.156287]
[1739890617577,0.00043936,95978.0,95977.0,0.25879065]
[1739890618692,0.00043936,95978.0,95977.0,0.10250365]
[1739890619923,0.00043936,95978.0,95977.0,0.25879065]
[1739890620127,0.00043936,95978.0,95977.0,0.30550862]
[1739890620509,0.00043936,95978.0,95977.0,0.14922162]
[1739890620720,0.00043936,95978.0,95977.0,0.30550862]
[1739890622753,0.00060946,95978.0,95977.0,0.30550862]
[1739890623308,0.00060946,95978.0,95977.0,0.10250365]
[1739890624537,0.00060946,95978.0,95977.0,0.25879065]
[1739890624938,0.00060946,95978.0,95977.0,0.10250365]
[1739890626137,0.00060946,95978.0,95944.0,0.06609666]
[1739890626138,0.00060946,95978.0,95952.0,0.208435]
[1739890626340,0.37572184,95970.0,95953.0,0.10250365]
[1739890626541,0.156296,95972.0,95961.0,0.156313]
[1739890626743,0.156296,95972.0,95962.0,0.10250365]
[1739890626970,0.208389,95975.0,95962.0,0.25881465]
[1739890627180,0.00060946,95978.0,95962.0,0.10250365]
[1739890627447,0.21942184,95972.0,95954.0,0.01025037]
[1739890627604,0.21942184,95964.0,95925.0,0.08363783]
[1739890627833,0.21942184,95964.0,95940.0,0.156346]
[1739890627834,1.141587,95963.0,95940.0,0.156346]
[1739890628073,0.208432,95955.0,95941.0,0.10250365]
[1739890628334,0.21942184,95970.0,95941.0,0.10250365]
[1739890628568,0.156315,95960.0,95949.0,0.156332]
[1739890628819,0.208401,95969.0,95946.0,0.156337]
[1739890629073,0.21942184,95970.0,95947.0,0.10250365]
[1739890629074,0.01633294,95964.0,95947.0,0.10250365]
[1739890629592,0.01633294,95964.0,95919.0,0.09242558]
[1739890629593,0.023,95959.0,95919.0,0.09242558]
[1739890629848,0.156364,95930.0,95919.0,0.09242558]
[1739890630150,0.15766372,95930.0,95919.0,0.09242558]
[1739890630386,0.01633768,95931.0,95919.0,0.09242558]
[1739890630932,0.0811,95943.0,95920.0,0.208505]
[1739890631181,0.156359,95933.0,95929.0,0.00047206]
[1739890631432,0.156362,95932.0,95930.0,0.01568451]
[1739890631677,0.156364,95930.0,95929.0,0.00047206]
[1739890631917,0.72844072,95930.0,95929.0,0.00047206]
[1739890632149,0.277774,95930.0,95929.0,0.00047206]